fUSD/lending_fUSD_20240420
["ID","MTS","AMOUNT","RATE_DAILY","PERIOD"]
[323022423,1713594638703,-251.99,0.00013641,2]
[323022424,1713594638712,-173.65,0.00013693,2]
[323022425,1713594638721,-6344.33,0.00013699,2]
[323022426,1713594638730,-245.29,0.00013732,2]
[323022427,1713594638739,-16554.49,0.00013768,2]
[323022428,1713594638748,-684.8,0.00013778,2]
[323022429,1713594638757,-500.0,0.00013807,2]
[323022430,1713594638766,-155.47,0.00014193,2]
[323022431,1713594638775,-401.77,0.00014224,2]
[323022432,1713594638784,-315.2,0.00014261,2]
[323022433,1713594638793,-566.0,0.00014658,2]
[323022434,1713594638802,-4175.78613797,0.00014939,2]
[323022435,1713594638811,-16129.9246,0.00014968,2]
[323022436,1713594638820,-597.13787299,0.00014968,2]
[323022437,1713594638830,-1250.0,0.00015,2]
[323022438,1713594638839,-1000.0,0.00015,2]
[323022439,1713594638847,-1094.0,0.00015,2]
[323022440,1713594638857,-1000.0,0.00015,2]
[323022441,1713594638865,-1000.0,0.00015,2]
[323022442,1713594638875,-1005.0,0.00015,2]
[323022443,1713594638884,-1001.0,0.00015,2]
[323022444,1713594638893,-156.92,0.00015057,2]
[323022445,1713594638902,-156.92,0.00015057,2]
[323022446,1713594638911,-155.87,0.00015057,2]
[323022447,1713594638920,-155.87,0.00015057,2]
[323022448,1713594638928,-155.87,0.00015057,2]
[323022449,1713594638937,-156.92,0.00015058,2]
[323022450,1713594638946,-155.87,0.00015058,2]
[323022451,1713594638955,-1992.96083559,0.00015065,2]
[323022452,1713594638964,-341731.69070778,0.00015067,2]
[323022453,1713594639797,-10737.09312621,0.00015067,2]
[323022454,1713594639809,-275.68,0.00015067,2]
[323022455,1713594639834,-306.14596991,0.00015067,2]
[323022456,1713594639862,-53250.7911881,0.00015067,2]
[323022457,1713594639894,-711460.15257674,0.00015067,2]
[323022458,1713594639905,-316175.63562372,0.00015067,2]
[323022459,1713594640697,-266.4874647,0.00015067,2]
[323022460,1713594640747,-713.72006656,0.00015067,2]
[323022461,1713594640787,-1195.44425529,0.00015067,2]
[323022470,1713594643172,-14064.05000027,0.00015067,2]
[323022483,1713594645912,-162.93636467,0.00015066,2]
[323022485,1713594645921,-1449.28926031,0.00015066,2]
[323022487,1713594645930,-159150.48818987,0.00015067,2]
[323022489,1713594646232,-356.4561,0.00015067,2]
[323022493,1713594707927,383.678318,0.00031,120]
[323022494,1713594712730,1616.0,0.00031,120]
[323022495,1713594753887,1617.0,0.00031,120]
[323022496,1713594776399,-1100.0,0.00012303,2]
[323022497,1713594825132,-150.0,0.00012302,2]
[323022498,1713594825153,-150.0,0.00012303,2]
[323022499,1713594825170,-356.0,0.00012303,2]
[323022500,1713594854927,-280.20272992,0.00012303,2]
[323022501,1713594854959,-369.45,0.00012403,2]
[323022502,1713594854989,-210.0,0.00013532,2]
[323022503,1713594855020,-150.0,0.00013718,2]
[323022504,1713594855050,-150.0,0.00014201,2]
[323022505,1713594855083,-442.53454016,0.00014222,2]
[323022506,1713594855106,-9.62545984,0.00014222,2]
[323022507,1713594855116,-153.68,0.00014226,2]
[323022508,1713594855126,-116.89727008,0.00014308,2]
[323022509,1713594855145,-36.78272992,0.00014308,2]
[323022510,1713594855155,-153.68,0.00014391,2]
[323022511,1713594855165,-150.0,0.00014449,2]
[323022512,1713594855174,-28.98727008,0.00014449,2]
[323022513,1713594855189,-121.01272992,0.00014449,2]
[323022514,1713594855198,-88.98727008,0.00014473,2]
[323022515,1713594855209,-64.69272992,0.00014473,2]
[323022516,1713594855218,-85.30727008,0.00014555,2]
[323022517,1713594855236,-68.37272992,0.00014555,2]
[323022518,1713594855245,-81.62727008,0.00014638,2]
[323022519,1713594855270,-72.05272992,0.00014638,2]
[323022520,1713594855279,-150.0,0.00014641,2]
[323022521,1713594855290,-230.10727008,0.00014667,2]
[323022522,1713594912596,154.73,0.0001611,15]
[323022523,1713594941890,-7354.0,0.00012302,2]
[323022524,1713594966858,-300.0,0.00012301,2]
[323022525,1713594966885,-5925.0,0.00012302,2]
[323022526,1713595003483,-1100.0,0.00012302,2]
[323022527,1713595059952,-1450.0,0.00012202,2]
[323022528,1713595232036,150.0,0.000273,120]
[323022529,1713595259446,150.0,0.000283,120]
[323022530,1713595321280,150.0,0.00031,120]
[323022531,1713595376955,150.0,0.00031,120]
[323022532,1713595397317,283.0,0.00031,120]
[323022533,1713595408403,154.73,0.0001611,15]
[323022536,1713595600306,29305.06350493,0.00031,120]
[323022560,1713595832121,-339.47,0.00012105,2]
[323022561,1713595832131,-1122.77213851,0.0001371,2]
[323022562,1713595832145,-656.10899353,0.0001371,2]
[323022563,1713595832171,-2365.71554263,0.0001371,2]
[323022564,1713595832182,-4347.58183589,0.0001371,2]
[323022565,1713595832192,-1119.15,0.00013811,2]
[323022566,1713595832202,-820.27456063,0.00013906,2]
[323022567,1713595832213,-23079.72543937,0.00013906,2]
[323022568,1713595832223,-1503.37,0.00013929,2]
[323022569,1713595832232,-155.47,0.0001393,2]
[323022570,1713595832242,-1000.0,0.00014007,2]
[323022571,1713595832251,-153.68,0.00014039,2]
[323022572,1713595832261,-171.43,0.00014159,2]
[323022573,1713595832271,-153.68,0.00014283,2]
[323022574,1713595832281,-339.47,0.00014369,2]
[323022575,1713595832290,-153.68,0.00014527,2]
[323022576,1713595832300,-150.0,0.00014652,2]
[323022577,1713595832310,-6145.23,0.00014667,2]
[323022579,1713595832318,-153.68,0.00014771,2]
[323022580,1713595832328,-499.99,0.00014795,2]
[323022582,1713595832338,-1000.0,0.000149,2]
[323022584,1713595832347,-3000.0,0.0001492,2]
[323022586,1713595832357,-1000.0,0.00014948,2]
[323022587,1713595832368,-3000.0,0.0001496,2]
[323022589,1713595832383,-7354.1633,0.00014968,2]
[323022606,1713595832726,-1582.6559,0.00014968,2]
[323022607,1713595832738,-626.24594834,0.00014968,2]
[323022619,1713595838108,-22.07510474,0.00014968,2]
[323022620,1713595838219,-845.02,0.00014968,2]
[323022621,1713595838280,-378.88143139,0.00014968,2]
[323022677,1713595840844,-517.34717878,0.00014968,2]
[323022678,1713595840909,-450.01300863,0.00014968,2]
[323022691,1713595843276,-405.61302134,0.00014968,2]
[323022692,1713595843398,-1124.81695055,0.00014968,2]
[323022699,1713595846878,-858.72191135,0.00014968,2]
[323022700,1713595846944,-426.06983525,0.00014968,2]
[323022701,1713595847013,-719.7941783,0.00014968,2]
[323022702,1713595847023,-631.61835105,0.00015,2]
[323022703,1713595847137,-3637.4999995,0.00015,2]
[323022704,1713595889588,154.73,0.0001611,15]
[323022719,1713596536566,123872.1662858,0.00031,120]
[323022721,1713596639934,-363.11662395,0.00012081,2]
[323022722,1713596639961,-1388.76782777,0.00012081,2]
[323022723,1713596639986,-4570.8265429,0.00012082,2]
[323022724,1713596640342,-2540.35536187,0.00012083,2]
[323022725,1713596640377,-305.52,0.00012092,2]
[323022726,1713596692819,186.80181995,0.00012092,2]
[323022727,1713596716807,155.66818329,0.00012092,2]
[323022728,1713596739147,155.0,0.00012092,2]
[323022729,1713596755561,155.0,0.00012092,2]
[323022730,1713596773647,155.0,0.00012092,2]
[323022731,1713596793590,23.94364027,0.00012092,2]
[323022778,1713597032239,-290.24,0.00011833,2]
[323022780,1713597032248,-1388.76782777,0.0001209,2]
[323022782,1713597032257,-32.99217223,0.00012092,2]
[323022786,1713597032298,-98.0641875,0.00012092,2]
[323022787,1713597032308,-189.30919752,0.00013438,2]
[323022789,1713597032518,-2830.20950248,0.00013438,2]
[323022791,1713597032527,-302.613658,0.00013502,2]
[323022796,1713597032563,-197.386342,0.00013502,2]
[323022798,1713597032572,-61.713658,0.00013511,2]
[323022829,1713597038168,-500.0,0.00013493,2]
[323022830,1713597038179,-400.54046876,0.00013511,2]
[323022831,1713597038333,-37.74587324,0.00013511,2]
[323022832,1713597038346,-400.64051138,0.0001352,2]
[323022839,1713597040379,-99.35948862,0.0001352,2]
[323022840,1713597040390,-500.0,0.00013529,2]
[323022841,1713597040400,-173.82240788,0.00013537,2]
[323022842,1713597040414,-260.42675,0.00013537,2]
[323022843,1713597040456,-65.75084212,0.00013537,2]
[323022844,1713597040467,-171.43,0.00013605,2]
[323022845,1713597040478,-108.80378716,0.00013756,2]
[323022846,1713597040492,-700.0,0.00013756,2]
[323022847,1713597040606,-2301.07621284,0.00013756,2]
[323022848,1713597040617,-150.0,0.00013947,2]
[323022849,1713597040628,-4883.76231269,0.00013948,2]
[323022850,1713597040638,-1167.36,0.00013949,2]
[323022851,1713597040648,-1000.0,0.00014004,2]
[323022852,1713597040659,-173.65,0.00014021,2]
[323022853,1713597040669,-290.24,0.00014097,2]
[323022855,1713597040679,-153.8,0.00014145,2]
[323022856,1713597040689,-163.46,0.00014148,2]
[323022857,1713597040700,-584.0,0.00014658,2]
[323022858,1713597040710,-413.05,0.000147,2]
[323022859,1713597040721,-1818.92,0.000147,2]
[323022860,1713597040731,-2675.27401831,0.0001485,2]
[323022869,1713597043269,-324.72598169,0.0001485,2]
[323022870,1713597043279,-1094.11461739,0.000149,2]
[323022871,1713597043288,-2022.53337105,0.00014963,2]
[323022872,1713597043297,-596.39990634,0.00014968,2]
[323022873,1713597043309,-913.42163015,0.00014968,2]
[323022874,1713597043492,-327.29498152,0.00014968,2]
[323022882,1713597046715,-256.776,0.00014968,2]
[323022885,1713597046760,-1604.775,0.00014968,2]
[323022888,1713597537379,26374.55715444,0.00031,120]
[323022906,1713597966835,2484.95431424,0.00011108,2]
[323022907,1713598000543,155.0,0.00011108,2]
[323022908,1713598017792,-203.89539455,0.00011206,2]
[323022909,1713598017815,-212.09460239,0.00011573,2]
[323022910,1713598017840,-269.44,0.00011574,2]
[323022911,1713598017863,-150.0,0.0001193,2]
[323022912,1713598017887,-161.47439017,0.00011991,2]
[323022913,1713598017911,-957.43575891,0.00012092,2]
[323022914,1713598017935,-5819.66407456,0.00012092,2]
[323022915,1713598017958,-6614.57596,0.00013213,2]
[323022916,1713598017981,-200.0,0.0001328,2]
[323022917,1713598018005,-777.56,0.00013314,2]
[323022918,1713598018033,-172.85981942,0.00013356,2]
[323022919,1713598020475,159.00909973,0.00011108,2]
[323022947,1713598231382,-535.59579537,0.00011954,2]
[323022948,1713598231438,-246.93818717,0.00011954,2]
[323022949,1713598231448,-255.96,0.00011955,2]
[323022950,1713598231459,-212.09460239,0.00013355,2]
[323022951,1713598231469,-169.21018058,0.00013356,2]
[323022952,1713598231478,-320.17722796,0.00013449,2]
[323022953,1713598231497,-179.82277204,0.00013449,2]
[323022954,1713598231507,-240.55,0.00013449,2]
[323022955,1713598231516,-500.0,0.00013458,2]
[323022956,1713598231525,-500.0,0.00013467,2]
[323022957,1713598231535,-500.0,0.00013476,2]
[323022958,1713598231545,-500.0,0.00013485,2]
[323022959,1713598231554,-150.99,0.0001367,2]
[323022960,1713598231563,-1000.0,0.00013671,2]
[323022961,1713598231573,-194.99,0.00013691,2]
[323022962,1713598231582,-364.18,0.00013699,2]
[323022963,1713598231591,-500.0,0.00013765,2]
[323022964,1713598231600,-255.96,0.00014219,2]
[323022965,1713598231609,-150.0,0.00014577,2]
[323022966,1713598231618,-150.0,0.00014578,2]
[323022967,1713598231628,-150.0,0.00014655,2]
[323022968,1713598231637,-18011.3888777,0.000147,2]
[323022969,1713598231647,-500.766149,0.00014795,2]
[323022970,1713598231656,-11689.73694881,0.0001482,2]
[323022971,1713598231665,-3000.0,0.0001482,2]
[323022972,1713598231675,-1050.5571,0.0001488,2]
[323022973,1713598231685,-6889.02605511,0.00014958,2]
[323022974,1713598231696,-1422.70892682,0.00014958,2]
[323022975,1713598231715,-267.23393513,0.00014958,2]
[323022976,1713598231740,-460.05,0.00014958,2]
[323022977,1713598231802,-1454.28315662,0.00014958,2]
[323022978,1713598231813,-818.3624996,0.00014958,2]
[323022980,1713598231830,-2285.28828624,0.00014958,2]
[323023004,1713598237488,-3478.42757392,0.00014958,2]
[323023005,1713598237499,-885.30001992,0.00014958,2]
[323023006,1713598237511,-829.26713013,0.00014958,2]
[323023007,1713598237552,-406.87160468,0.00014958,2]
[323023020,1713598239466,-361.58709964,0.00014958,2]
[323023021,1713598239493,-5606.69330571,0.00014958,2]
[323023022,1713598241161,-626.59166763,0.00014958,2]
[323023023,1713598241173,-33211.86143675,0.00014958,2]
[323023024,1713598241183,-2502.9904849,0.00014958,2]
[323023025,1713598241192,-8434.9954935,0.00014963,2]
[323023026,1713598241221,-7103.02832532,0.00014963,2]
[323023027,1713598241230,-6412.72345459,0.00014968,2]
[323023028,1713598241239,-180.21956281,0.00014968,2]
[323023029,1713598241248,-193.68772259,0.00014968,2]
[323023030,1713598241259,-1000.0,0.00014977,2]
[323023031,1713598241269,-1000.0,0.00014977,2]
[323023032,1713598241279,-1000.0,0.00014977,2]
[323023033,1713598241288,-1000.0,0.00014978,2]
[323023034,1713598241298,-174.60291486,0.00014978,2]
[323023035,1713598241306,-167.46239413,0.00014978,2]
[323023036,1713598241316,-4546.27877765,0.00014978,2]
[323023037,1713598241326,-691.62506831,0.00014978,2]
[323023039,1713598241335,-709.37578356,0.00014978,2]
[323023041,1713598241344,-909.06017209,0.00014978,2]
[323023042,1713598241353,-190.22160991,0.00014978,2]
[323023043,1713598241363,-197.14690417,0.00014978,2]
[323023044,1713598241372,-209.47829575,0.00014978,2]
[323023045,1713598241381,-196.32456793,0.00014978,2]
[323023046,1713598241390,-203.71799038,0.00014978,2]
[323023047,1713598241399,-1000.0,0.00014979,2]
[323023048,1713598241408,-362.92081948,0.00014979,2]
[323023049,1713598241417,-2356.03750157,0.00014979,2]
[323023050,1713598241427,-105811.48315484,0.0001498,2]
[323023051,1713598241439,-16077.65184788,0.0001498,2]
[323023059,1713598242967,-655.16092701,0.0001498,2]
[323023067,1713598245625,-384.666,0.0001498,2]
[323023068,1713598245682,-387.88803833,0.0001498,2]
[323023075,1713598259935,1548.19320322,0.00011108,2]
[323023088,1713598741004,-1351.11833139,0.00011745,2]
[323023089,1713598741030,-363.64538964,0.00011746,2]
[323023090,1713598741054,-155.0,0.00011747,2]
[323023091,1713598741080,-5544.53670484,0.00011747,2]
[323023092,1713598741104,-2585.69957413,0.00011755,2]
[323023093,1713598781024,-429.86412587,0.00011755,2]
[323023094,1713598781046,-15073.5983,0.00011856,2]
[323023095,1713598781068,-230.36,0.00012069,2]
[323023096,1713598781091,-300.0,0.00013072,2]
[323023097,1713598781112,-500.0,0.00013709,2]
[323023098,1713598781135,-302.33,0.00013894,2]
[323023099,1713598781160,-173.65,0.00013987,2]
[323023100,1713598781181,-518.04,0.00013987,2]
[323023101,1713598781203,-1000.0,0.00014083,2]
[323023102,1713598781227,-20401.91,0.00014115,2]
[323023103,1713598781248,-300.0,0.00014118,2]
[323023104,1713598781271,-167.34,0.00014179,2]
[323023105,1713598781293,-450.689534,0.00014247,2]
[323023106,1713598781316,-230.36,0.00014333,2]
[323023107,1713598781338,-1000.0,0.00014602,2]
[323023108,1713598781362,-183.4169499,0.00014644,2]
[323023109,1713598781384,-154.10473008,0.00014849,2]
[323023110,1713598781409,-200.0,0.00014859,2]
[323023111,1713598781433,-1000.0,0.00014859,2]
[323023112,1713598781454,-200.0,0.00014859,2]
[323023113,1713598781476,-500.0,0.00014859,2]
[323023114,1713598781499,-500.0,0.0001486,2]
[323023115,1713598781520,-200.0,0.0001486,2]
[323023116,1713598781543,-1000.0,0.0001486,2]
[323023117,1713598781566,-1000.0,0.0001486,2]
[323023118,1713598781586,-200.0,0.0001486,2]
[323023119,1713598781608,-500.0,0.0001486,2]
[323023120,1713598781629,-500.0,0.0001486,2]
[323023121,1713598781652,-200.0,0.0001486,2]
[323023122,1713598781674,-1806.7877,0.0001488,2]
[323023123,1713598781696,-4777.54866015,0.0001488,2]
[323023124,1713598819352,-210.74546022,0.00011755,2]
[323023125,1713598819374,-986.02053985,0.0001488,2]
[323023126,1713598819395,-8803.23399993,0.00014968,2]
[323023131,1713598971630,403.04,0.0003,120]
[323023132,1713599027461,-345.02,0.0001407,2]
[323023133,1713599027484,-171.43,0.0001409,2]
[323023134,1713599027505,-3963.86918421,0.00014183,2]
[323023135,1713599027528,-200.0,0.00014184,2]
[323023136,1713599027550,-369.68081579,0.00014198,2]
[323023147,1713599431720,-422.48574755,0.00012192,2]
[323023148,1713599431730,-309.88,0.00012194,2]
[323023149,1713599431739,-167.29,0.00013955,2]
[323023150,1713599431749,-840.0,0.00013955,2]
[323023151,1713599431758,-500.0,0.00013975,2]
[323023152,1713599431768,-534.01,0.00014015,2]
[323023153,1713599431777,-361.46918421,0.00014198,2]
[323023154,1713599431786,-1036.1101169,0.00014198,2]
[323023155,1713599431795,-405.620581,0.00014247,2]
[323023156,1713599431804,-309.88,0.00014458,2]
[323023157,1713599431813,-561.0,0.0001463,2]
[323023158,1713599431823,-2833.71,0.0001463,2]
[323023159,1713599431832,-5001.4333,0.0001473,2]
[323023160,1713599431841,-2830.2095,0.0001478,2]
[323023161,1713599431851,-162.7,0.00014783,2]
[323023162,1713599431860,-150.0,0.00014795,2]
[323023163,1713599431869,-150.0,0.00014795,2]
[323023164,1713599431878,-521.81,0.000148,2]
[323023165,1713599431887,-150.0,0.000148,2]
[323023166,1713599431896,-150.0,0.000148,2]
[323023167,1713599431905,-521.81,0.000148,2]
[323023168,1713599431915,-150.0,0.000148,2]
[323023169,1713599431924,-150.0,0.000148,2]
[323023170,1713599431933,-150.0,0.000148,2]
[323023171,1713599431942,-150.0,0.000148,2]
[323023172,1713599431951,-150.0,0.000149,2]
[323023173,1713599431960,-521.81,0.000149,2]
[323023174,1713599431970,-300.0,0.000149,2]
[323023175,1713599431979,-510.27,0.000149,2]
[323023176,1713599431988,-150.0,0.000149,2]
[323023177,1713599431998,-150.0,0.000149,2]
[323023178,1713599432007,-521.81,0.000149,2]
[323023179,1713599432016,-150.0,0.000149,2]
[323023180,1713599432025,-150.0,0.000149,2]
[323023181,1713599432034,-150.0,0.000149,2]
[323023182,1713599432044,-328.3,0.000149,2]
[323023183,1713599432053,-313.58324232,0.00014966,2]
[323023184,1713599432062,-179.24932294,0.00014966,2]
[323023185,1713599432071,-576.43497303,0.00014967,2]
[323023187,1713599432080,-1000.0,0.00014967,2]
[323023189,1713599432089,-5878.32983331,0.00014968,2]
[323023191,1713599432099,-2675.615787,0.00014968,2]
[323023193,1713599432108,-5773.21618432,0.00014968,2]
[323023198,1713599432277,-3343.58267927,0.00014968,2]
[323023199,1713599432288,-808.43,0.00014968,2]
[323023200,1713599432337,-501.76730164,0.00014968,2]
[323023201,1713599432386,-562.6319985,0.00014968,2]
[323023210,1713599437614,-350.88353486,0.00014658,2]
[323023211,1713599437852,-188.11646514,0.00014658,2]
[323023212,1713599437862,-468.78353491,0.00014968,2]
[323023213,1713599438014,-0.29508243,0.00014968,2]
[323023214,1713599438117,-307.96626693,0.00014968,2]
[323023219,1713599440085,-35284.18522708,0.00014968,2]
[323023244,1713599440490,-538.65184788,0.00014968,2]
[323023248,1713599440547,-1641.30252,0.00014968,2]
[323023266,1713599442719,-8419.58893744,0.00014968,2]
[323023267,1713599442729,-8184.4951965,0.00014968,2]
[323023268,1713599442739,-628.4820431,0.00014968,2]
[323023269,1713599442748,-180.21956279,0.00014968,2]
[323023270,1713599442758,-2567.7341397,0.00014968,2]
[323023271,1713599442767,-452.16407478,0.00014968,2]
[323023272,1713599442777,-408.81570655,0.00014978,2]
[323023273,1713599442787,-203.83182825,0.00014978,2]
[323023274,1713599442796,-410.30704359,0.00014978,2]
[323023275,1713599442805,-376.48214074,0.00014978,2]
[323023276,1713599442815,-419.37533825,0.00014978,2]
[323023277,1713599442825,-2357.76557745,0.00014978,2]
[323023278,1713599442834,-488.38349419,0.00014978,2]
[323023279,1713599442843,-155.0,0.00014978,2]
[323023280,1713599442853,-155.17939548,0.00014978,2]
[323023281,1713599442862,-362.90116211,0.00014978,2]
[323023282,1713599442873,-1775.09187772,0.00014978,2]
[323023283,1713599442882,-343.01364445,0.00014978,2]
[323023284,1713599442892,-954.32402777,0.00014978,2]
[323023285,1713599442902,-155.0,0.00014978,2]
[323023286,1713599442911,-5554.01315395,0.00014978,2]
[323023287,1713599442920,-267.54936916,0.00014979,2]
[323023288,1713599442930,-121620.7033727,0.0001498,2]
[323023289,1713599442961,-2599.63704,0.0001498,2]
[323023290,1713599442972,-31547.5508845,0.0001498,2]
[323023291,1713599443039,-926.12701985,0.0001498,2]
[323023292,1713599443050,-1092.59470012,0.0001498,2]
[323023293,1713599443061,-325.44494099,0.0001498,2]
[323023294,1713599443072,-5893.04789687,0.0001498,2]
[323023295,1713599443084,-1050.0,0.0001498,2]
[323023301,1713599445780,-530.03589362,0.0001498,2]
[323023302,1713599445832,-1006.8,0.0001498,2]
[323023304,1713599452992,23737.10143899,0.00031,120]
[323023315,1713599568441,50000.0,0.00031,120]
[323023337,1713600523574,10389.42753876,0.00031,120]
[323023339,1713600592577,39567.90231186,0.00031,120]
[323023340,1713600600347,7518.79328924,0.0003,120]
[323023365,1713600631901,-411.26103104,0.0001164,2]
[323023367,1713600631950,-298.52438282,0.0001164,2]
[323023368,1713600631960,-455.13883221,0.00011641,2]
[323023369,1713600631972,-1539.01503888,0.00011641,2]
[323023370,1713600631982,-4408.63906285,0.00011642,2]
[323023371,1713600631992,-164.48628113,0.00011652,2]
[323023372,1713600632001,-278.89,0.00011756,2]
[323023373,1713600632011,-30505.16971338,0.00012224,2]
[323023374,1713600632021,-164.48628113,0.00012724,2]
[323023375,1713600632030,-171.43,0.0001348,2]
[323023376,1713600632042,-1019.6,0.00013491,2]
[323023377,1713600632051,-672.0,0.00013586,2]
[323023378,1713600632061,-604.4,0.00013587,2]
[323023379,1713600632070,-499.99,0.00013587,2]
[323023380,1713600632080,-500.0,0.00013698,2]
[323023381,1713600632089,-267.0,0.00013699,2]
[323023382,1713600632098,-167.69,0.00013738,2]
[323023383,1713600632107,-164.48628113,0.00013797,2]
[323023384,1713600632118,-278.55,0.00013941,2]
[323023385,1713600632127,-328.0,0.00013945,2]
[323023386,1713600632137,-500.0,0.00013972,2]
[323023387,1713600632146,-278.89,0.00014019,2]
[323023388,1713600632156,-296.69,0.00014114,2]
[323023389,1713600632165,-151.84,0.00014178,2]
[323023390,1713600632175,-743.63693517,0.00014197,2]
[323023391,1713600632184,-500.0,0.00014246,2]
[323023392,1713600632194,-521.81,0.000143,2]
[323023394,1713600632203,-150.0,0.000143,2]
[323023396,1713600632212,-150.0,0.000143,2]
[323023398,1713600632222,-350.29,0.000143,2]
[323023399,1713600632231,-521.81,0.000143,2]
[323023402,1713600632241,-1003.88349745,0.00014396,2]
[323023404,1713600632250,-500.0,0.0001452,2]
[323023406,1713600632259,-536.0,0.00014658,2]
[323023408,1713600632269,-526.13,0.00014678,2]
[323023409,1713600632278,-150.0,0.000147,2]
[323023412,1713600632290,-162.7,0.000147,2]
[323023414,1713600632299,-350.29,0.000147,2]
[323023415,1713600632308,-150.0,0.000147,2]
[323023418,1713600632318,-150.0,0.000147,2]
[323023420,1713600632327,-350.29,0.000147,2]
[323023422,1713600632336,-162.7,0.000147,2]
[323023423,1713600632345,-150.0,0.000147,2]
[323023424,1713600632354,-150.0,0.0001478,2]
[323023425,1713600632363,-186.37642872,0.0001478,2]
[323023426,1713600632372,-215.2105,0.0001478,2]
[323023427,1713600632381,-28827.6453,0.0001478,2]
[323023428,1713600632391,-521.81,0.00014783,2]
[323023429,1713600632400,-150.0,0.00014783,2]
[323023430,1713600632409,-193.73,0.00014783,2]
[323023431,1713600632419,-300.0,0.00014783,2]
[323023432,1713600632428,-521.81,0.00014783,2]
[323023433,1713600632437,-680.23,0.00014783,2]
[323023434,1713600632446,-1043.3,0.00014783,2]
[323023435,1713600632456,-150.0,0.00014783,2]
[323023436,1713600632465,-150.0,0.00014783,2]
[323023437,1713600632473,-150.0,0.00014783,2]
[323023438,1713600632483,-150.0,0.00014783,2]
[323023439,1713600632492,-150.0,0.00014783,2]
[323023440,1713600632501,-150.0,0.00014783,2]
[323023441,1713600632510,-500.0,0.00014794,2]
[323023442,1713600632520,-418.94,0.00014795,2]
[323023443,1713600632529,-418.94,0.00014795,2]
[323023444,1713600632539,-418.94,0.00014795,2]
[323023445,1713600632548,-418.94,0.00014795,2]
[323023446,1713600632557,-418.94,0.00014795,2]
[323023447,1713600632566,-532.76,0.00014795,2]
[323023448,1713600632575,-501.960938,0.000148,2]
[323023449,1713600632584,-2871.8596177,0.000148,2]
[323023450,1713600632593,-500.0,0.00014859,2]
[323023451,1713600632602,-200.0,0.0001486,2]
[323023452,1713600632612,-307.091159,0.0001486,2]
[323023453,1713600632621,-500.0,0.0001486,2]
[323023454,1713600632631,-200.0,0.0001486,2]
[323023455,1713600632641,-181.35443176,0.00014863,2]
[323023456,1713600632650,-2231.98446726,0.00014865,2]
[323023457,1713600632659,-1482.17616553,0.00014868,2]
[323023458,1713600632668,-164.48628113,0.00014869,2]
[323023459,1713600632678,-156.08,0.0001487,2]
[323023460,1713600632687,-1000.0,0.00014877,2]
[323023461,1713600632696,-155.0,0.00014878,2]
[323023462,1713600632705,-155.17468362,0.00014878,2]
[323023463,1713600632715,-13053.97263244,0.00014878,2]
[323023464,1713600632724,-156.68269197,0.00014878,2]
[323023465,1713600632735,-155.0,0.00014878,2]
[323023466,1713600632744,-799.23899194,0.00014878,2]
[323023467,1713600632754,-10555.34394596,0.00014878,2]
[323023468,1713600632765,-156.4291755,0.00014878,2]
[323023469,1713600632775,-254.47109711,0.00014878,2]
[323023470,1713600632786,-3005.06482437,0.00014878,2]
[323023471,1713600632795,-160.91122999,0.00014878,2]
[323023472,1713600632805,-190.46798037,0.00014878,2]
[323023473,1713600632814,-155.36861111,0.00014878,2]
[323023474,1713600632824,-155.15437097,0.00014878,2]
[323023475,1713600632834,-639.608228,0.00014878,2]
[323023476,1713600632843,-325.09234905,0.00014878,2]
[323023477,1713600632852,-307.91625811,0.00014878,2]